[Event "GER-chT Youth Countries 2018"]
[Site "Wurzburg"]
[Date "2018.10.03"]
[Round "1"]
[White "Parvanyan, Ashot"]
[Black "Silber, Kevin"]
[Result "1-0"]
[ECO "C45"]
[WhiteElo "2428"]
[BlackElo "2205"]
[Annotator "NA"]
[PlyCount "93"]
[EventDate "2018.10.03"]
[EventType "team-tourn"]
[EventCountry "GER"]
[SourceTitle "playchess.com"]
[Source "ChessBase"]
[SourceQuality "1"]
[TimeControl "40/5400+30:1800+30"]

1. e4 {[%emt 0:00:00]} e5 {[%emt 0:00:00]} 2. Nf3 {[%emt 0:00:04]} Nc6 {[%emt 0:00:00]} 3. d4 {[%emt 0:00:22]} exd4 {[%emt 0:00:00]} 4. Nxd4 {[%emt 0:00:05]} Nf6 {[%emt 0:00:00]} 5. Nxc6 {[%emt 0:00:36]} bxc6 {[%emt 0:00:05]} 6. e5 {[%emt 0:00:04]} Qe7 {[%emt 0:00:09]} 7. Qe2 {[%emt 0:00:07]} Nd5 {[%emt 0:00:09]} 8. c4 {[%emt 0:00:45]} Ba6 {[%emt 0:00:07]} 9. Nd2 {[%emt 0:00:26]} g6 {[%emt 0:01:37]} 10. Nf3 {[%emt 0:01:07] C45: Scotch Game} Qb4+ {[%emt 0:01:34]} 11. Kd1 {[%emt 0:01:03]} Bg7 {[%emt 0:01:36]} (11... Rb8 12. Qc2 Ne7 13. a3 Qb6 14. b4 c5 15. Bd3 cxb4 16. axb4 Bb7 17. b5 Bg7 {½-½ (30) Ponkratov,P (2613)-Svidler,P (2765) Riadh 2017}) 12. Qd2 {[%emt 0:04:05]} Qxd2+ {[%emt 0:00:17]} 13. Bxd2 {[%emt 0:00:26]} Nb6 {[%emt 0:01:13]} 14. b3 {[%emt 0:04:01]} O-O {[%emt 0:04:44]} 15. c5 {[%emt 0:00:38]} Bxf1 {[%emt 0:00:28]} 16. Rxf1 {[%emt 0:00:05]} Nd5 {[%emt 0:00:11]} 17. Rc1 {[%emt 0:00:06]} Rfe8 {[%emt 0:01:56] [#]} 18. Re1 $146 {[%emt 0:04:36]} Re6 {[%emt 0:04:35]} 19. Rc4 {[%emt 0:02:27]} Rae8 {[%emt 0:12:47]} 20. Ra4 {[%emt 0:09:19]} Ra8 {[%emt 0:04:52]} 21. Kc2 {[%emt 0:03:55]} Ree8 {[%emt 0:04:58]} 22. h4 {[%emt 0:14:34]} Bf8 {[%emt 0:09:15]} 23. Rc4 {[%emt 0:01:31]} Rab8 {[%emt 0:08:16]} 24. Nd4 {[%emt 0:09:50]} Bg7 {[%emt 0:06:18]} 25. f4 {[%emt 0:01:30]} h5 {[%emt 0:16:05]} 26. Ra4 {[%emt 0:03:48]} Ra8 {[%emt 0:03:05]} (26... a6 $14) 27. Rg1 {[%emt 0:12:01]} ({White should try} 27. Ra6 $16) 27... Bh6 {[%emt 0:06:56]} 28. g3 {[%emt 0:03:30]} a6 {[%emt 0:01:24]} 29. Kd3 {[%emt 0:05:44]} f6 {[%emt 0:04:14]} 30. e6 {[%emt 0:01:44]} dxe6 {[%emt 0:01:45]} 31. Nxc6 {[%emt 0:01:14]} e5 {[%emt 0:02:28]} 32. fxe5 {[%emt 0:03:52]} Bxd2 {[%emt 0:00:24]} 33. Kxd2 {[%emt 0:00:14]} fxe5 {[%emt 0:02:30]} 34. Re1 {[%emt 0:02:02]} Ne7 {[%emt 0:00:38]} 35. Nxe5 {[%emt 0:08:16]} ({Lieber} 35. Nb4 $16) 35... Nf5 {[%emt 0:01:10]} 36. Nd3 {[%emt 0:02:37]} Red8 $2 {[%emt 0:00:28]} ({Black should play} 36... Rxe1 $14 37. Kxe1 (37. Nxe1 Nxg3 38. Nf3 Kf7 $14) 37... Nxg3) 37. Kc2 {[%emt 0:01:07]} (37. Re6 $18) 37... Rd7 {[%emt 0:01:22]} 38. Nf4 {[%emt 0:00:30]} Kh7 {[%emt 0:00:45]} 39. Ne6 {[%emt 0:00:34]} (39. Kb2 $18) 39... Kg8 {[%emt 0:00:30]} 40. g4 {[%emt 0:00:32]} hxg4 {[%emt 0:00:25]} 41. Rxg4 {[%emt 0:30:18]} Re7 {[%emt 0:04:47]} 42. h5 {[%emt 0:00:00]} Rae8 $2 {[%emt 0:08:49]} (42... Kf7) 43. Rxg6+ {[%emt 0:00:00]} Kh8 {[%emt 0:00:19]} 44. Kc3 {[%emt 0:00:00]} Rh7 $18 45. Reg1 Ne7 {[%emt 0:05:21]} 46. R6g5 {[%emt 0:00:00]} c6 {[%emt 0:00:21]} 47. Nf4 {[%emt 0:00:00]} 1-0

[Event "GER-chT Youth Countries 2018"]
[Site "Wurzburg"]
[Date "2018.10.03"]
[Round "1"]
[White "Lagunow, Raphael"]
[Black "Nothnagel, Marian Can"]
[Result "0-1"]
[ECO "C28"]
[WhiteElo "2417"]
[BlackElo "2341"]
[Annotator "NA"]
[PlyCount "112"]
[EventDate "2018.10.03"]
[EventType "team-tourn"]
[EventCountry "GER"]
[SourceTitle "playchess.com"]
[Source "ChessBase"]
[SourceQuality "1"]
[TimeControl "40/5400+30:1800+30"]

{[%evp 41,108,0,0,0,0,0,49,1,24,24,8,0,322,11,0,0,10,-59,42,-119,-106,32767,32767,32767,32767,-295,-297,-275,-219,-217,-110,-184,-203,-128,-139,-258,-203,-204,-76,-74,-72,-279,32767,32767,32767,32767,32767,32767,32767,-235,-263,-337,-275,-384,-396,-462,-404,-459,-417,-431,-377,-356,-421,-683,-492,-679,-732,-781,-682]} 1. e4 {[%emt 0:00:00]} e5 {[%emt 0:00:00]} 2. Bc4 {[%emt 0:00:00]} Nc6 {[%emt 0:00:00]} 3. Nc3 {[%emt 0:00:38]} Nf6 {[%emt 0:00:04]} 4. d3 {[%emt 0:00:07]} Na5 {[%emt 0:01:06]} 5. Qf3 {[%emt 0:00:08]} d6 {[%emt 0:05:04] C28: Vienna Game: 2...Nf6 3 Bc4 Nc6} (5... Nxc4 6. dxc4 Bb4 7. Nge2 d6 8. h3 Be6 9. b3 Nd7 10. O-O Bxc3 11. Nxc3 O-O 12. Qg3 f5 13. Bg5 {½-½ (33) Caruana,F (2822)-Aronian,L (2767) chess.com INT 2018}) 6. h3 {[%emt 0:01:38]} Be7 {[%emt 0:06:18]} 7. Nge2 {[%emt 0:00:40]} Nxc4 {[%emt 0:02:01]} 8. dxc4 {[%emt 0:00:08]} Be6 {[%emt 0:00:04]} 9. b3 {[%emt 0:09:02]} Qd7 {[%emt 0:13:25]} 10. O-O Rg8 $146 ({Predecessor:} 10... h6 11. a4 O-O-O 12. Qe3 a6 13. Qa7 {0-1 (38) Rublevsky,S (2702)-Pavlidis,A (2522) Berlin 2015}) 11. Ng3 {[%emt 0:13:34]} g5 {[%emt 0:03:52]} 12. Nd5 {[%emt 0:08:12]} Bxd5 {[%emt 0:08:42]} 13. cxd5 {[%emt 0:04:22]} g4 {[%emt 0:03:42]} 14. hxg4 {[%emt 0:02:34]} Qxg4 {[%emt 0:00:47]} 15. Re1 {[%emt 0:02:51]} h5 {[%emt 0:07:32]} 16. Kf1 {[%emt 0:01:32]} Qxf3 {[%emt 0:15:58]} 17. gxf3 {[%emt 0:00:11]} Kd7 {[%emt 0:01:53]} 18. Ke2 {[%emt 0:03:23]} Rh8 {[%emt 0:05:29]} 19. Rh1 {[%emt 0:07:57]} h4 {[%emt 0:02:34]} 20. Nf5 {[%emt 0:00:22]} Rh5 {[%emt 0:00:40]} 21. c4 {[%emt 0:05:09]} h3 {[%emt 0:00:59]} 22. Rh2 {[%emt 0:02:30]} Rah8 {[%emt 0:05:51]} 23. Be3 {[%emt 0:00:40]} b6 {[%emt 0:01:12]} 24. b4 {[%emt 0:01:52]} Nh7 {[%emt 0:05:05]} 25. a4 {[%emt 0:02:40]} Nf8 {[%emt 0:02:14]} 26. a5 {[%emt 0:04:21]} Bg5 $2 {[%emt 0:01:54] [#]} (26... Ng6 $11 {and Black is okay.}) 27. c5 $2 {[%emt 0:10:35]} (27. axb6 $1 $18 axb6 28. Ng3) 27... bxc5 $1 {[%emt 0:03:10]} 28. bxc5 {[%emt 0:00:08]} dxc5 {[%emt 0:01:26]} 29. a6 {[%emt 0:02:47]} ({Better is} 29. Bxc5 $11 a6 30. Ng3) 29... Ng6 {[%emt 0:01:55]} (29... Bxe3 $15 30. fxe3 Rg5) 30. Rb1 $2 {[%emt 0:01:28] [#]} (30. Bxc5 $14 {stays ahead.} Nf4+ 31. Kd1) 30... Bxe3 $1 {[%emt 0:00:46]} 31. Nxe3 {[%emt 0:05:52]} Nf4+ {[%emt 0:00:05]} 32. Kd2 {[%emt 0:00:02]} R8h6 {[%emt 0:00:09]} 33. Ra1 {[%emt 0:04:36]} Rb6 {[%emt 0:00:46]} 34. Nc4 {[%emt 0:00:10]} Rb4 {[%emt 0:00:09]} 35. Na5 {[%emt 0:00:30]} Rh6 {[%emt 0:01:37]} ({Besser ist} 35... Rg5 $19 36. Nc6 Rg2) 36. Nc6 {[%emt 0:00:35] [#]} Rxc6 $1 {[%emt 0:00:05]} 37. dxc6+ {[%emt 0:00:03]} Kxc6 {[%emt 0:00:06]} 38. Rg1 {[%emt 0:02:28]} Rb6 {[%emt 0:01:37]} 39. Rg7 {[%emt 0:00:26]} f6 $2 {[%emt 0:00:08]} (39... Rxa6 $19 {ist viel giftiger.} 40. Rxf7 Ra3) 40. Rf7 {[%emt 0:01:12]} Kb5 {[%emt 0:00:22]} ({Of course not} 40... Rxa6 $6 41. Rxf6+ Kb5 42. Rxa6 $11) 41. Rxc7 $2 {[%emt 0:33:41]} (41. Rh1 $17 {was the only defense.}) 41... Rxa6 {[%emt 0:30:07]} 42. Rh1 {[%emt 0:01:00]} Ra2+ {[%emt 0:01:00]} 43. Kc3 {[%emt 0:00:00]} Ra3+ {[%emt 0:00:00]} 44. Kd2 {[%emt 0:00:00]} Rd3+ {[%emt 0:00:00]} 45. Kc2 {[%emt 0:00:00]} Rxf3 {[%emt 0:00:00]} 46. Rxa7 {[%emt 0:00:00]} Rxf2+ {[%emt 0:00:00]} 47. Kb3 {[%emt 0:00:00]} c4+ {[%emt 0:00:00]} 48. Ka3 {[%emt 0:00:00]} Rf3+ {[%emt 0:00:00]} 49. Ka2 {[%emt 0:00:00]} Kc5 {[%emt 0:00:00]} 50. Rd7 {[%emt 0:00:00]} Rd3 {[%emt 0:00:00]} 51. Rf7 {[%emt 0:00:00]} Rd6 {[%emt 0:00:00]} 52. Rc1 {[%emt 0:00:00]} Kd4 {[%emt 0:00:00]} 53. Rc7 {[%emt 0:00:00]} Kxe4 {[%emt 0:00:00]} 54. R7xc4+ {[%emt 0:00:00]} Kf5 $19 {[%emt 0:00:00]} 55. R4c2 {[%emt 0:00:00]} Rd3 {[%emt 0:00:00]} 56. Rg1 {[%emt 0:00:00]} Re3 {[%emt 0:00:00]} 0-1

[Event "GER-chT Youth Countries 2018"]
[Site "Wurzburg"]
[Date "2018.10.03"]
[Round "1"]
[White "Niermann, Tristan"]
[Black "Pfreundt, Jakob"]
[Result "1/2-1/2"]
[ECO "A62"]
[WhiteElo "2307"]
[BlackElo "2358"]
[Annotator "NA"]
[PlyCount "85"]
[EventDate "2018.10.03"]
[EventType "team-tourn"]
[EventCountry "GER"]
[SourceTitle "playchess.com"]
[Source "ChessBase"]
[SourceQuality "1"]
[TimeControl "40/5400+30:1800+30"]

1. d4 {[%emt 0:00:00]} Nf6 {[%emt 0:00:00]} 2. c4 {[%emt 0:00:00]} e6 {[%emt 0:00:00]} 3. g3 {[%emt 0:00:00]} c5 {[%emt 0:01:05]} 4. d5 {[%emt 0:01:00]} exd5 {[%emt 0:00:53]} 5. cxd5 {[%emt 0:00:03]} d6 {[%emt 0:00:12]} 6. Nc3 {[%emt 0:00:10]} g6 {[%emt 0:00:19]} 7. Nf3 {[%emt 0:00:12]} Bg7 {[%emt 0:00:11]} 8. Bg2 {[%emt 0:00:05]} O-O {[%emt 0:00:11]} 9. O-O {[%emt 0:00:08]} Re8 {[%emt 0:00:53]} 10. Bf4 {[%emt 0:00:28]} Na6 {[%emt 0:01:18] LiveBook: 179 Partien} 11. a4 $146 {[%emt 0:06:19] A62: Benoni (mit 7.g3)} ({Vorgänger:} 11. Re1 Bf5 12. Nh4 Bd7 13. e4 c4 14. Qd2 Nc5 15. Bxd6 Nd3 16. Nf3 Ng4 17. Re2 Qb6 18. Bf4 Qxb2 19. Qxb2 Nxb2 {0-1 (40) Navara,D (2737)-Morozevich,A (2675) Biel 2017}) 11... Nb4 {[%emt 0:09:02]} (11... Ne4 $11 12. Rc1 g5) 12. Rc1 {[%emt 0:11:49]} ({Besser ist} 12. Nd2 $1 $14) 12... a6 $15 {[%emt 0:03:00]} 13. Re1 {[%emt 0:06:10] Schwarz steht etwas besser.} Bg4 {[%emt 0:06:26]} 14. h3 {[%emt 0:14:44]} Bxf3 {[%emt 0:00:18] Die Stellung ist ausgeglichen.} 15. Bxf3 {[%emt 0:00:24]} Qe7 {[%emt 0:03:50]} 16. e4 {[%emt 0:08:53]} Nd7 {[%emt 0:01:05]} 17. Be2 {[%emt 0:12:03]} Ne5 {[%emt 0:19:30]} 18. b3 {[%emt 0:02:51]} Rac8 {[%emt 0:05:14]} 19. Kg2 {[%emt 0:12:18]} h5 {[%emt 0:14:17]} 20. Qd2 {[%emt 0:04:36] Precision: Weiß = 30%, Schwarz = 29%.} Nd7 {[%emt 0:07:50]} 21. Bc4 {[%emt 0:02:20]} Bd4 {[%emt 0:07:13]} 22. Bg5 {[%emt 0:05:32]} Qf8 {[%emt 0:00:32]} 23. f4 {[%emt 0:00:56]} Qg7 {[%emt 0:06:14]} 24. g4 {[%emt 0:03:45]} Nf6 {[%emt 0:06:20]} 25. Kf3 {[%emt 0:00:36]} hxg4+ {[%emt 0:01:48]} 26. hxg4 {[%emt 0:00:07]} Nh7 {[%emt 0:00:06]} 27. Bh4 {[%emt 0:01:13]} g5 {[%emt 0:00:37]} 28. fxg5 {[%emt 0:01:28]} Re5 {[%emt 0:01:43]} 29. Ne2 {[%emt 0:01:32]} Nxg5+ {[%emt 0:01:22]} 30. Bxg5 {[%emt 0:00:06]} Qxg5 {[%emt 0:02:30]} 31. Qxg5+ {[%emt 0:01:17]} Rxg5 {[%emt 0:00:02]} 32. Nxd4 {[%emt 0:01:36]} cxd4 {[%emt 0:00:02]} 33. Kf4 {[%emt 0:01:20]} Re5 {[%emt 0:01:06]} 34. Rcd1 {[%emt 0:02:21]} Rce8 {[%emt 0:00:59]} 35. Re2 {[%emt 0:00:27]} d3 {[%emt 0:00:45]} 36. Bxd3 {[%emt 0:00:34]} Nxd5+ {[%emt 0:00:18]} 37. exd5 {[%emt 0:00:20]} Rxe2 {[%emt 0:00:05]} 38. Bxe2 {[%emt 0:00:03]} Rxe2 {[%emt 0:00:06]} 39. Rd3 {[%emt 0:00:43]} Kg7 {[%emt 0:00:57]} 40. Rc3 {[%emt 0:00:39]} Re5 {[%emt 0:00:58]} 41. Rc7 {[%emt 0:02:48]} b5 {[%emt 0:03:35]} 42. Rc6 {[%emt 0:00:25]} Rxd5 {[%emt 0:04:30]} 43. Rxa6 {[%emt 0:00:19]} 1/2-1/2

[Event "GER-chT Youth Countries 2018"]
[Site "Wurzburg"]
[Date "2018.10.03"]
[Round "1"]
[White "Neukirchner, Pascal"]
[Black "Gressmann, Moritz"]
[Result "1-0"]
[ECO "D11"]
[WhiteElo "2294"]
[BlackElo "2106"]
[Annotator "NA"]
[PlyCount "99"]
[EventDate "2018.10.03"]
[EventType "team-tourn"]
[EventCountry "GER"]
[SourceTitle "playchess.com"]
[Source "ChessBase"]
[SourceQuality "1"]
[TimeControl "40/5400+30:1800+30"]

{[%evp 35,93,135,32767,188,32767,202,193,178,234,197,233,246,383,262,254,183,145,107,114,153,152,116,150,127,128,0,133,139,32767,0,32767,32767,0,32767,32767,0,32767,-126,32767,32767,32767,4,127,120,135,109,145,117,125,123,207,178,183,215,226,218,32767,277,300,363]} 1. d4 {[%emt 0:00:00]} d5 {[%emt 0:00:00]} 2. c4 {[%emt 0:00:00]} c6 {[%emt 0:00:00]} 3. Nf3 {[%emt 0:00:01]} e6 {[%emt 0:00:00]} 4. e3 {[%emt 0:00:26]} f5 {[%emt 0:00:03]} 5. Bd3 {[%emt 0:00:36]} Bd6 {[%emt 0:00:11]} 6. O-O {[%emt 0:01:10]} Nf6 {[%emt 0:00:10]} 7. b3 {[%emt 0:00:09]} Qe7 {[%emt 0:00:14]} 8. Bb2 {[%emt 0:00:21]} O-O {[%emt 0:00:14]} 9. Nc3 {[%emt 0:00:26] A84: Dutch Defence: 2 c4 Miscellaneous} (9. Ne5 Bd7 10. Nd2 Be8 11. f3 Bh5 12. Qe1 Nbd7 13. Kh1 Rad8 14. Nxd7 Nxd7 15. e4 dxe4 16. fxe4 f4 {1-0 (43) Bu,X (2710)-Wei,Y (2734) Zaozhuang 2015}) 9... Nbd7 {[%emt 0:02:16]} 10. Rc1 {[%emt 0:03:37]} Ne4 {[%emt 0:01:45]} 11. Ne2 {[%emt 0:01:41]} Ndf6 {[%emt 0:13:27]} 12. Ne5 {[%emt 0:00:57]} Bd7 {[%emt 0:20:46]} 13. f3 {[%emt 0:19:11]} Ng5 {[%emt 0:00:20]} 14. Ng3 $146 {[%emt 0:02:54]} ({Predecessor:} 14. Qd2 a5 15. Bb1 a4 16. e4 Ngxe4 17. fxe4 Nxe4 18. Bxe4 fxe4 19. Rxf8+ Rxf8 {½-½ (40) Sal Enriquez,C (2036)-Martin Villanova,J (1878) Mataro 2016}) 14... c5 {[%emt 0:16:15]} 15. Qd2 {[%emt 0:20:08]} Nf7 {[%emt 0:13:43]} 16. Nxd7 {[%emt 0:02:27]} Qxd7 {[%emt 0:05:10]} 17. cxd5 {[%emt 0:00:38]} Bxg3 {[%emt 0:06:43]} 18. hxg3 {[%emt 0:04:40]} exd5 {[%emt 0:02:42]} 19. dxc5 {[%emt 0:03:06]} Qe6 {[%emt 0:05:53]} 20. Rfe1 {[%emt 0:07:43]} Ne5 {[%emt 0:04:12]} 21. Bb1 {[%emt 0:00:33]} Nh5 {[%emt 0:01:18]} (21... Rf7 $142 22. Qd4 Re8) 22. Qd4 {[%emt 0:00:12]} Nc6 {[%emt 0:02:58]} 23. Qh4 {[%emt 0:00:09]} Qh6 {[%emt 0:01:54]} (23... Nf6 {was necessary.} 24. Rcd1 Rf7) 24. g4 {[%emt 0:05:31]} fxg4 {[%emt 0:00:11]} 25. Qxg4 {[%emt 0:00:14]} Rae8 {[%emt 0:00:17] [#]} 26. Bd4 {[%emt 0:04:50]} ({White should play} 26. f4 $1 $18) 26... Nxd4 {[%emt 0:00:55]} 27. Qxd4 {[%emt 0:01:04]} ({Lieber nicht} 27. exd4 Nf4 $15) 27... Kh8 {[%emt 0:00:17]} 28. Kf2 {[%emt 0:07:24]} ({Don't take} 28. Qxd5 $6 Ng3 $16) 28... Nf6 {[%emt 0:00:08]} 29. Rh1 {[%emt 0:02:14]} Qg5 {[%emt 0:01:16] [#]} 30. Rce1 {[%emt 0:01:15]} (30. f4 $1 $16 {[%cal Rf4g5]} Qg4 31. Rh3) 30... h6 {[%emt 0:00:56] [#]} (30... Ng4+ $1 $11 {keeps the balance.} 31. Kg1 Nxe3 32. Rxh7+ Kg8) 31. Kg1 $1 {[%emt 0:01:13]} Qg3 {[%emt 0:00:41]} 32. Qh4 {[%emt 0:00:25]} (32. Re2 $16) 32... Qe5 {[%emt 0:00:01]} 33. Qf2 {[%emt 0:03:26]} d4 {[%emt 0:00:46]} 34. e4 {[%emt 0:00:01]} Qxc5 {[%emt 0:00:13]} 35. Rh4 {[%emt 0:01:38]} Qg5 {[%emt 0:00:59]} 36. Rh3 $2 {[%emt 0:01:18]} (36. g3 $14 {behält die Oberhand.}) 36... Qc5 {[%emt 0:00:30]} 37. Rh4 {[%emt 0:03:31]} Qe5 {[%emt 0:00:34]} 38. Rd1 {[%emt 0:00:50]} Rd8 {[%emt 0:00:28]} (38... d3 $11) 39. f4 {[%emt 0:01:27]} Qc5 {[%emt 0:00:32]} 40. e5 {[%emt 0:01:00]} Nd5 {[%emt 0:00:30]} 41. Qxd4 {[%emt 0:31:30]} Qxd4+ {[%emt 0:04:19]} 42. Rxd4 {[%emt 0:00:00]} Ne7 {[%emt 0:00:22]} (42... Nc3 $16 43. Rxd8 Rxd8) 43. Rxd8 {[%emt 0:00:00]} Rxd8 {[%emt 0:00:01]} 44. Kf2 {[%emt 0:00:00]} Rd1 {[%emt 0:02:37]} 45. Be4 {[%emt 0:00:00]} Rd2+ {[%emt 0:00:11]} 46. Ke3 {[%emt 0:00:00]} Rxa2 {[%emt 0:00:48]} 47. f5 $18 {[%emt 0:00:00]} Ng8 {[%emt 0:11:15]} 48. Bxb7 {[%emt 0:00:00]} Rb2 {[%emt 0:00:28]} 49. Rb4 {[%emt 0:00:00]} a5 {[%emt 0:01:27]} 50. Rb5 {[%emt 0:00:00]} 1-0

[Event "GER-chT Youth Countries 2018"]
[Site "Wurzburg"]
[Date "2018.10.03"]
[Round "1"]
[White "Urban, Konstantin"]
[Black "Burian, Simon"]
[Result "1-0"]
[ECO "B99"]
[WhiteElo "2279"]
[BlackElo "2091"]
[Annotator "NA"]
[PlyCount "119"]
[EventDate "2018.10.03"]
[EventType "team-tourn"]
[EventCountry "GER"]
[SourceTitle "playchess.com"]
[Source "ChessBase"]
[SourceQuality "1"]
[TimeControl "40/5400+30:1800+30"]

1. e4 {[%emt 0:00:00]} c5 {[%emt 0:00:00]} 2. Nf3 {[%emt 0:00:00]} d6 {[%emt 0:00:00]} 3. d4 {[%emt 0:00:00]} cxd4 {[%emt 0:00:09]} 4. Nxd4 {[%emt 0:00:00]} Nf6 {[%emt 0:00:07]} 5. Nc3 {[%emt 0:00:06]} a6 {[%emt 0:00:09]} 6. Bg5 {[%emt 0:00:10]} e6 {[%emt 0:01:01]} 7. f4 {[%emt 0:00:10]} Be7 {[%emt 0:00:29]} 8. Qf3 {[%emt 0:09:14]} Qc7 {[%emt 0:01:10]} 9. O-O-O {[%emt 0:00:28]} Nbd7 {[%emt 0:01:46]} 10. Bd3 {[%emt 0:00:10]} h6 {[%emt 0:00:26]} 11. Bh4 {[%emt 0:00:12]} g5 12. fxg5 {[%emt 0:00:25]} Ne5 {[%emt 0:02:05]} 13. Qe2 {[%emt 0:02:19]} Nfg4 {[%emt 0:01:12]} 14. Nf3 {[%emt 0:06:25]} Nxf3 {[%emt 0:02:53]} 15. gxf3 {[%emt 0:00:44]} hxg5 {[%emt 0:00:13]} 16. Bg3 {[%emt 0:00:41]} Ne5 {[%emt 0:00:29]} 17. f4 {[%emt 0:02:23]} gxf4 {[%emt 0:02:38] B99: Sicilian Najdorf: 6 Bg5 e6 7 f4 Be7 8 Qf3 Qc7 9 0-0-0 Nbd7} 18. Bxf4 {[%emt 0:00:15]} Bd7 {[%emt 0:03:30]} 19. Rdf1 {[%emt 0:02:07]} Rh7 {[%emt 0:05:26] [#] LiveBook: 7 Games. The position is equal.} 20. Rf2 $146 {[%emt 0:07:12]} ({Predecessor:} 20. h4 $5 O-O-O 21. h5 Rg8 22. Kb1 Bg5 23. Rfg1 Qd8 24. Bxe5 dxe5 25. Bxa6 bxa6 26. Qxa6+ Kc7 27. Qa7+ Kc8 28. Rd1 {1-0 (28) Savchenko,B (2627)-Nedilko,V (2407) Plovdiv 2010}) 20... O-O-O {[%emt 0:04:32]} 21. Rhf1 {[%emt 0:04:23]} Bc6 {[%emt 0:04:46]} 22. Kb1 {[%emt 0:10:24]} Bh4 {[%emt 0:04:35]} 23. Rg2 {[%emt 0:01:16]} Qe7 {[%emt 0:04:14]} 24. Rgg1 {[%emt 0:08:22]} Rdh8 {[%emt 0:12:27]} 25. Qe3 {[%emt 0:03:42]} Kb8 {[%emt 0:05:03]} 26. Qd4 {[%emt 0:03:26]} Bf6 {[%emt 0:05:27]} 27. Be3 {[%emt 0:02:26] [#] Black must now prevent Rxf6!} Nd7 $2 {[%emt 0:05:57]} ({Wrong is} 27... Rxh2 $2 {[#]} 28. Rxf6 $1 {[%mdl 512]} R2h3 29. Rff1 $18) (27... Kc8 $11 {and Black is okay.}) 28. Qa7+ $18 {[%emt 0:04:37]} Kc7 {[%emt 0:02:00]} 29. e5 {[%emt 0:00:47]} Bxe5 {[%emt 0:00:12]} 30. Bxh7 {[%emt 0:00:37]} Rxh7 {[%emt 0:00:14]} 31. Rg8 {[%emt 0:05:13] And now Qa8 would win.} Rg7 $2 {[%emt 0:03:47] Precision: White = 50%, Black = 48%.} (31... d5 $16 {is more resistant.}) 32. Qa8 {[%emt 0:02:02]} Rxg8 {[%emt 0:01:12]} 33. Qxg8 {[%emt 0:00:02]} f5 {[%emt 0:05:21]} 34. Bf4 {[%emt 0:03:24]} Nf6 {[%emt 0:02:20]} 35. Qg5 {[%emt 0:00:27]} Bxc3 {[%emt 0:05:41]} 36. bxc3 {[%emt 0:00:07]} Qf7 {[%emt 0:00:11]} 37. Rg1 {[%emt 0:00:49]} Ne4 {[%emt 0:00:36]} 38. Qg7 {[%emt 0:00:23]} Qxg7 {[%emt 0:00:11]} 39. Rxg7+ {[%emt 0:00:01]} Kb6 {[%emt 0:00:21]} 40. h4 {[%emt 0:03:25]} Be8 {[%emt 0:06:05]} 41. Re7 {[%emt 0:32:06]} Nxc3+ {[%emt 0:32:42]} 42. Kb2 {[%emt 0:00:53]} Nd5 {[%emt 0:00:55]} 43. Rxe8 {[%emt 0:00:49]} Nxf4 {[%emt 0:00:07]} 44. Rh8 {[%emt 0:00:13]} Kc5 {[%emt 0:07:00]} 45. h5 {[%emt 0:00:47]} Nxh5 {[%emt 0:00:47]} 46. Rxh5 {[%emt 0:00:04]} b5 {[%emt 0:00:26]} 47. Kc3 {[%emt 0:00:25]} d5 {[%emt 0:01:46]} 48. Kd3 {[%emt 0:02:58]} a5 {[%emt 0:00:00]} 49. a3 {[%emt 0:00:00]} d4 {[%emt 0:00:00]} 50. Rh4 {[%emt 0:00:00]} e5 {[%emt 0:00:00]} 51. Rh5 {[%emt 0:00:00]} e4+ {[%emt 0:00:00]} 52. Kd2 {[%emt 0:00:00]} Kc4 {[%emt 0:00:00]} 53. Rxf5 {[%emt 0:00:00]} e3+ {[%emt 0:00:00]} 54. Ke2 {[%emt 0:00:00]} a4 {[%emt 0:00:00]} 55. Rh5 {[%emt 0:00:00]} b4 {[%emt 0:00:00]} 56. axb4 {[%emt 0:00:00]} Kxb4 {[%emt 0:00:00]} 57. Kd3 {[%emt 0:00:00]} a3 {[%emt 0:00:00]} 58. Kxd4 {[%emt 0:00:00]} e2 {[%emt 0:00:00]} 59. Rh1 {[%emt 0:00:00]} a2 {[%emt 0:00:00]} 60. Ke4 1-0